bitfinex-derivatives/quotes_SOLF0:USTF0_20240818
["timestamp","ask_amount","ask_price","bid_price","bid_amount"]
[1724001393555,3.4351,145.52,145.51,0.05182914]
[1724001402966,3.4351,145.52,145.51,18.55182914]
[1724001403468,3.4351,145.52,145.51,0.05182914]
[1724001404167,3.4351,145.52,145.51,18.55182914]
[1724001404562,3.4351,145.52,145.51,0.05182914]
[1724001405160,3.4351,145.52,145.51,18.55182914]
[1724001405468,0.04864357,145.53,145.51,18.55182914]
[1724001406767,3.4351,145.52,145.51,18.55182914]
[1724001408372,3.4351,145.52,145.51,0.05182914]
[1724001410277,3.4351,145.52,145.51,18.55182914]
[1724001412678,0.04864357,145.53,145.51,18.55182914]
[1724001413278,3.48364357,145.53,145.51,18.55182914]
[1724001414580,3.48364357,145.53,145.52,7.39]
[1724001416679,3.4351,145.52,145.51,0.05182914]
[1724001416883,3.4351,145.52,145.51,7.44182914]
[1724001427187,3.43180518,145.53,145.39,4.3]
[1724001427388,3.43180518,145.53,145.36,3.45460467]
[1724001427389,7.39,145.53,145.46,7.39]
[1724001427591,3.4363,145.47,145.46,7.39]
[1724001427890,4.24,145.47,145.43,7.39]
[1724001428395,0.04770993,145.46,145.44,0.052551]
[1724001428787,3.4367,145.45,145.44,0.052551]
[1724001436295,3.4367,145.45,145.4,18.47]
[1724001436296,3.4377,145.41,145.4,18.47]
[1724001438897,3.4379,145.4,145.39,0.04493393]
[1724001439694,3.4381,145.4,145.3,3.4401]
[1724001439892,3.4381,145.4,145.21,6.8846]
[1724001439893,22.73,145.42,145.33,18.47]
[1724001440294,3.4393,145.34,145.33,18.47]
[1724001442104,21.82363331,145.44,145.33,18.47]
[1724001442408,4.26,145.43,145.36,18.47]
[1724001442602,3.4386,145.37,145.36,18.47]
[1724001444308,3.4389,145.36,145.35,0.04459977]
[1724001444603,3.4389,145.36,145.35,18.51459977]
[1724001444800,0.05088194,145.38,145.35,0.04459977]
[1724001445003,3.4389,145.36,145.35,0.04459977]
[1724001448498,4.31088194,145.38,145.35,18.51459977]
[1724001448701,4.31088194,145.38,145.37,18.47]
[1724001449305,7.74938194,145.38,145.37,18.47]
[1724001450310,3.48938194,145.38,145.37,18.47]
[1724001454416,3.48938194,145.38,145.37,7.39]
[1724001456513,0.05088194,145.38,145.37,7.39]
[1724001459210,3.48928194,145.38,145.37,7.39]
[1724001459725,3.4387,145.37,145.36,7.39]
[1724001462720,3.4387,145.37,145.35,0.04459977]
[1724001462721,3.4389,145.36,145.35,7.43459977]
[1724001465319,0.05088194,145.38,145.35,7.43459977]
[1724001465522,0.05088194,145.38,145.37,7.39]
[1724001466929,3.48928194,145.38,145.37,7.39]
[1724001469435,3.4386,145.37,145.36,7.39]
[1724001469828,0.05088194,145.38,145.35,7.43459977]
[1724001470031,3.4389,145.36,145.35,7.43459977]
[1724001472435,7.7389,145.36,145.35,7.43459977]
[1724001473037,3.4387,145.37,145.35,7.43459977]
[1724001473335,3.4387,145.37,145.36,7.39]
[1724001480438,3.4389,145.36,145.35,7.43459977]
[1724001480631,3.4389,145.36,145.35,0.04459977]
[1724001482130,3.4399,145.32,145.31,7.39]
[1724001482926,3.4397,145.33,145.31,7.39]
[1724001483128,3.48380046,145.33,145.31,7.39]
[1724001483733,3.4398,145.32,145.31,7.39]
[1724001486436,8.6735,145.42,145.31,7.39]
[1724001486641,4.3,145.4,145.35,7.39]
[1724001487229,4.3,145.4,145.29,2.5338]
[1724001487442,4.3,145.4,145.35,7.39]
[1724001487940,0.0497282,145.39,145.36,0.04409053]
[1724001488739,3.4386,145.37,145.36,0.04409053]
[1724001489942,7.6786,145.37,145.36,0.04409053]
[1724001491148,7.6786,145.37,145.36,7.43409053]
[1724001491445,3.4385,145.38,145.36,7.43409053]
[1724001491647,3.4385,145.38,145.37,7.39]
[1724001492048,3.4386,145.37,145.36,7.43409053]
[1724001492542,3.4386,145.37,145.36,0.04409053]
[1724001492748,4.2897282,145.39,145.34,7.39]
[1724001492947,4.2897282,145.39,145.35,7.39]
[1724001493152,4.24,145.39,145.35,7.39]
[1724001494147,4.24,145.39,145.31,3.44]
[1724001494343,0.04429109,145.38,145.36,0.04491909]
[1724001495049,3.4386,145.37,145.36,0.04491909]
[1724001498844,0.04429109,145.38,145.36,0.04491909]
[1724001499548,3.4386,145.37,145.36,0.04491909]
[1724001504255,12.91474534,145.37,145.29,7.39]
[1724001504455,14.87821943,145.36,145.29,7.39]
[1724001504752,7.39,145.37,145.29,7.39]
[1724001504958,14.87539931,145.36,145.29,7.39]
[1724001505153,5.52405824,145.35,145.29,7.39]
[1724001505359,3.44,145.32,145.31,0.05115606]
[1724001509260,3.4398,145.33,145.31,7.44115606]
[1724001509455,4.28993517,145.34,145.32,7.39]
[1724001509655,3.4396,145.33,145.32,7.39]
[1724001511059,3.48943517,145.34,145.32,7.39]
[1724001511257,4.24,145.37,145.32,36.95]
[1724001511463,4.24,145.37,145.36,7.39]
[1724001512759,7.6786,145.37,145.36,7.39]
[1724001514459,0.04556041,145.38,145.36,7.39]
[1724001515354,3.4386,145.37,145.36,7.39]
[1724001515553,0.04556041,145.38,145.36,7.39]
[1724001516870,3.48396041,145.38,145.36,7.39]
[1724001517365,0.04556041,145.38,145.36,7.39]
[1724001517562,73.09997407,145.44,145.36,7.39]
[1724001517563,28.7517,145.48,145.36,7.39]
[1724001517762,9.76854932,145.47,145.43,7.39]
[1724001517958,14.88784465,145.46,145.43,7.39]
[1724001518161,3.437,145.44,145.43,7.39]
[1724001522462,3.4372,145.43,145.42,0.04961979]
[1724001524071,3.4378,145.41,145.34,1.3612]
[1724001524371,3.4378,145.41,145.39,7.39]
[1724001524579,3.4379,145.4,145.39,7.39]
[1724001525570,3.48399326,145.41,145.39,7.39]
[1724001525768,3.48399326,145.41,145.4,7.39]
[1724001526572,0.04619326,145.41,145.4,7.39]
[1724001527166,3.4376,145.42,145.4,7.39]
[1724001527372,4.24,145.43,145.4,38.2028]
[1724001527373,7.6773,145.43,145.4,38.2028]
[1724001527670,3.4373,145.43,145.42,7.39]
[1724001528370,3.4375,145.42,145.41,7.43921084]
[1724001531576,3.4375,145.42,145.41,0.04921084]
[1724001532573,3.4375,145.42,145.41,7.43921084]
[1724001535780,0.05174297,145.44,145.41,7.43921084]
[1724001535978,0.05174297,145.44,145.43,7.39]
[1724001536681,3.48874297,145.44,145.43,7.39]
[1724001537975,0.05174297,145.44,145.43,7.39]
[1724001538678,0.05174297,145.44,145.42,7.39]
[1724001539774,3.4372,145.43,145.42,7.39]
[1724001540677,3.48884297,145.44,145.42,7.39]
[1724001540877,3.48884297,145.44,145.43,7.39]
[1724001542287,0.05174297,145.44,145.41,0.04921084]
[1724001542481,0.05174297,145.44,145.42,7.39]
[1724001542787,3.4375,145.42,145.41,0.04921084]
[1724001552202,3.4384,145.38,145.35,1.3439]
[1724001552392,3.4384,145.38,145.37,7.39]
[1724001559001,0.04953053,145.39,145.37,7.39]
[1724001560713,3.48783053,145.39,145.37,7.39]
[1724001560915,4.24,145.43,145.37,7.39]
[1724001561216,4.24,145.43,145.41,7.39]
[1724001562118,4.28624501,145.43,145.41,7.43385785]
[1724001562913,3.4375,145.42,145.41,7.43385785]
[1724001563115,3.4375,145.42,145.41,0.04385785]
[1724001565518,3.4382,145.39,145.38,7.39]
[1724001566712,3.43717773,145.39,145.26,4.24]
[1724001567013,3.43717773,145.39,145.27,1.2927]
[1724001567014,4.24,145.38,145.27,1.2927]
[1724001567208,4.24,145.38,145.32,7.39]
[1724001567820,3.4396,145.33,145.32,7.39]
[1724001568721,81.99353192,145.47,145.32,36.95]
[1724001568920,2.5604,145.49,145.45,7.39]
[1724001569222,4.58,145.48,145.45,7.39]
[1724001569417,3.37944681,145.47,145.45,7.39]
[1724001569719,3.4366,145.46,145.45,7.44058561]
[1724001569915,8.0166,145.46,145.45,7.44058561]
[1724001570522,3.4366,145.46,145.45,0.05058561]
[1724001570825,8.0166,145.46,145.45,0.05058561]
[1724001571015,3.4366,145.46,145.45,0.05058561]
[1724001571823,8.06329,145.47,145.45,0.05058561]
[1724001573119,3.4365,145.46,145.45,0.05058561]
[1724001576429,0.04689,145.47,145.45,0.05058561]
[1724001576627,20.64,145.57,145.45,0.05058561]
[1724001576628,4.58,145.5,145.46,18.46]
[1724001577035,8.0157,145.5,145.46,18.46]
[1724001577630,8.0157,145.5,145.47,0.05008258]
[1724001577830,0.04663346,145.49,145.47,0.05008258]
[1724001578332,3.48263346,145.49,145.47,0.05008258]
[1724001578531,0.04663346,145.49,145.47,0.05008258]
[1724001578936,3.436,145.48,145.47,0.05008258]
[1724001579637,3.48253346,145.49,145.47,0.05008258]
[1724001582532,0.04663346,145.49,145.47,0.05008258]
[1724001583132,4.62663346,145.49,145.47,0.05008258]
[1724001583634,3.4353,145.52,145.48,18.46]
[1724001583835,4.58,145.51,145.48,18.46]
[1724001584828,4.62364635,145.51,145.48,18.51221086]
[1724001585129,4.62364635,145.51,145.48,21.94821086]
[1724001585334,8.05894635,145.51,145.48,18.51221086]
[1724001589439,3.4356,145.5,145.48,18.51221086]
[1724001594845,3.4358,145.49,145.48,18.51221086]
[1724001597040,3.4356,145.5,145.48,18.51221086]
[1724001597541,0.04364635,145.51,145.48,21.94811086]
[1724001597745,0.04364635,145.51,145.5,18.46]
[1724001598547,0.04364635,145.51,145.5,7.39]
[1724001600653,0.04364635,145.51,145.49,18.48]
[1724001601543,0.04364635,145.51,145.5,18.48]
[1724001601747,3.47894635,145.51,145.5,18.48]
[1724001602549,3.4358,145.49,145.48,18.53221086]
[1724001605558,0.04364635,145.51,145.48,18.53221086]
[1724001605858,0.04364635,145.51,145.5,18.48]
[1724001606254,3.47894635,145.51,145.5,18.48]
[1724001606854,3.4356,145.5,145.49,18.48]
[1724001618968,4.52364635,145.51,145.48,0.05221086]
[1724001618969,3.4358,145.49,145.48,0.05221086]
[1724001629377,3.4365,145.46,145.45,7.39]
[1724001630985,3.4367,145.45,145.44,0.05062315]
[1724001631282,7.39,145.46,145.4,7.39]
[1724001631583,7.39,145.43,145.33,2.6025]
[1724001631790,4.36,145.42,145.37,7.39]
[1724001632286,3.4386,145.38,145.37,7.39]
[1724001632788,7.7986,145.38,145.37,7.39]
[1724001633881,3.4386,145.37,145.36,0.05162952]
[1724001634187,4.36,145.38,145.35,7.39]
[1724001634490,3.439,145.36,145.35,7.39]
[1724001635383,0.04977083,145.37,145.35,7.39]
[1724001635584,4.40977083,145.37,145.36,7.39]
[1724001636188,4.36,145.39,145.36,7.39]
[1724001636386,4.36,145.39,145.38,7.39]
[1724001638584,7.7982,145.39,145.38,7.39]
[1724001639993,33.39729306,145.46,145.38,36.95]
[1724001640186,4.36,145.45,145.43,7.39]
[1724001640391,33.39729306,145.46,145.43,7.39]
[1724001640392,4.36,145.44,145.43,7.39]
[1724001640987,7.797,145.44,145.43,7.39]
[1724001641386,3.437,145.44,145.43,7.39]
[1724001641592,7.797,145.44,145.43,7.39]
[1724001644993,3.4372,145.43,145.42,0.05015247]
[1724001646293,3.4382,145.39,145.34,2.0111]
[1724001646495,4.36,145.44,145.39,7.39]
[1724001646891,4.36,145.44,145.38,7.39]
[1724001647090,4.36,145.44,145.32,3.4397]
[1724001647091,7.39,145.43,145.32,3.4397]
[1724001647295,3.4384,145.38,145.37,0.04425228]
[1724001647494,7.7984,145.38,145.37,0.04425228]
[1724001653511,3.48166295,145.39,145.37,18.53425228]
[1724001653798,7.84166295,145.39,145.37,18.53425228]
[1724001654202,3.48166295,145.39,145.37,18.53425228]
[1724001655099,0.04346295,145.39,145.37,18.53425228]
[1724001655495,3.4384,145.38,145.37,0.04425228]
[1724001660901,7.7984,145.38,145.37,0.04425228]
[1724001669804,3.48186295,145.39,145.37,7.44425228]
[1724001670005,7.84186295,145.39,145.37,7.44425228]
[1724001670409,7.84186295,145.39,145.37,0.04425228]
[1724001670712,3.4384,145.38,145.37,0.04425228]
[1724001672606,7.7984,145.38,145.37,0.04425228]
[1724001676107,11.25358433,145.38,145.37,0.04425228]
[1724001676413,11.25358433,145.38,145.31,18.48]
[1724001676414,7.81518433,145.38,145.31,18.48]
[1724001676610,10.41608433,145.38,145.31,18.48]
[1724001676915,3.4394,145.34,145.31,18.48]
[1724001677219,10.41608433,145.38,145.31,18.48]
[1724001677414,3.48851338,145.34,145.31,18.5267191]
[1724001677812,7.84851338,145.34,145.31,18.5267191]
[1724001679810,4.40901338,145.34,145.31,18.5267191]
[1724001680716,4.40901338,145.34,145.31,21.9667191]
[1724001681120,7.84841338,145.34,145.31,21.9667191]
[1724001681314,7.84841338,145.34,145.31,18.5267191]
[1724001683117,3.4396,145.33,145.31,18.5267191]
[1724001683609,4.40901338,145.34,145.31,18.5267191]
[1724001684018,7.84851338,145.34,145.31,18.5267191]
[1724001684221,4.40901338,145.34,145.31,18.5267191]
[1724001686019,3.4397,145.33,145.31,18.5267191]
[1724001689822,3.4398,145.32,145.31,18.5267191]
[1724001690116,4.40901338,145.34,145.31,18.5267191]
[1724001690523,7.84831338,145.34,145.33,7.4]
[1724001696417,3.4396,145.33,145.32,7.4]
[1724001697821,3.4398,145.32,145.31,0.0467191]
[1724001698027,4.36,145.34,145.29,7.4]
[1724001698222,3.4403,145.31,145.29,7.4]
[1724001698421,4.36,145.34,145.29,7.4]
[1724001699131,3.4403,145.31,145.3,0.04784858]
[1724001708539,7.7003,145.31,145.3,7.44784858]
[1724001708738,3.4403,145.31,145.3,7.44784858]
[1724001709235,0.0449258,145.33,145.3,7.44784858]
[1724001709540,4.3049258,145.33,145.32,7.4]
[1724001710339,3.4845258,145.33,145.32,7.4]
[1724001710546,0.0449258,145.33,145.32,7.4]
[1724001715037,0.0449258,145.33,145.32,10.8398]
[1724001720651,71.87761233,145.42,145.32,41.26]
[1724001720949,70.56691233,145.42,145.39,7.4]
[1724001721142,3.4375,145.42,145.41,7.4]
[1724001722046,3.48130806,145.43,145.41,7.4]
[1724001722244,3.48130806,145.43,145.42,7.4]
[1724001725450,0.04400806,145.43,145.42,7.4]
[1724001726051,3.48120806,145.43,145.42,7.4]
[1724001727355,3.4375,145.42,145.4,7.44680084]
[1724001727851,0.04400806,145.43,145.4,7.44680084]
[1724001728253,3.48140806,145.43,145.41,7.4]
[1724001730749,0.04400806,145.43,145.41,7.4]
[1724001731754,0.04400806,145.43,145.4,0.04680084]
[1724001731755,3.4377,145.41,145.4,0.04680084]
[1724001748961,7.4,145.41,145.33,1.2865]
[1724001749263,4.24,145.4,145.33,8.6865]
[1724001749464,5.5416,145.4,145.33,8.6865]
[1724001749661,7.4,145.39,145.29,4.24]
[1724001749867,7.4,145.36,145.3,7.4]
[1724001750063,4.29225215,145.35,145.33,0.05067398]
[1724001750267,4.29225215,145.35,145.33,7.45067398]
[1724001751275,4.29225215,145.35,145.34,7.4]
[1724001751766,0.05225215,145.35,145.34,7.4]
[1724001753176,4.24,145.38,145.34,7.4]
[1724001753376,4.24,145.38,145.36,7.4]
[1724001754372,7.72817688,145.38,145.36,7.4]
[1724001755275,4.28977688,145.38,145.36,7.4]
[1724001756879,4.28977688,145.38,145.36,10.8387]
[1724001757177,0.04977688,145.38,145.36,10.8387]
[1724001758779,3.438,145.4,145.37,3.4386]
[1724001758982,3.438,145.4,145.38,7.4]
[1724001759388,7.6778,145.41,145.38,10.8382]
[1724001759683,4.24,145.41,145.4,7.4]
[1724001759883,0.04589831,145.41,145.4,7.4]
[1724001760887,0.04589831,145.41,145.38,0.04991574]
[1724001761386,3.4379,145.4,145.38,0.04991574]
[1724001761786,3.4379,145.4,145.39,7.4]
[1724001763687,0.04589831,145.41,145.38,7.44991574]
[1724001764282,3.438,145.4,145.38,7.44991574]
[1724001768788,3.438,145.4,145.38,0.04991574]
[1724001769595,3.4382,145.39,145.38,0.04991574]
[1724001769790,0.04589831,145.41,145.34,1.2672]
[1724001770092,3.4389,145.36,145.27,2.0563]
[1724001770297,4.24,145.4,145.34,7.4]
[1724001770492,4.24,145.41,145.37,7.4]
[1724001770693,3.4381,145.4,145.39,7.4]
[1724001770993,4.28456188,145.41,145.38,0.04960641]
[1724001771195,3.4384,145.38,145.36,7.4]
[1724001771496,3.4384,145.38,145.36,7.44697467]
[1724001771691,3.4384,145.38,145.36,0.04697467]
[1724001771996,3.4384,145.38,145.36,7.44697467]
[1724001772195,4.28376276,145.41,145.36,0.04697467]
[1724001777792,3.4385,145.38,145.36,0.04697467]
[1724001780901,3.4386,145.37,145.36,0.04697467]
[1724001783300,4.26,145.37,145.29,1.3476]
[1724001783507,4.26,145.37,145.31,7.4]
[1724001784307,0.0447182,145.35,145.33,0.0516621]
[1724001784692,3.4393,145.34,145.33,0.0516621]
[1724001785303,0.0447182,145.35,145.28,3.4406]
[1724001785304,3.4401,145.31,145.28,7.4]
[1724001785501,4.26,145.31,145.28,7.4]
[1724001786596,7.74927232,145.31,145.28,7.44601833]
[1724001786799,4.30907232,145.31,145.28,0.04601833]
[1724001786995,4.30907232,145.31,145.28,7.44601833]
[1724001787200,7.74927232,145.31,145.28,7.44601833]
[1724001794208,4.30907232,145.31,145.28,0.04601833]
[1724001794409,3.4403,145.3,145.28,0.04601833]
[1724001794615,11.70907232,145.31,145.22,2.6534]
[1724001794909,7.4,145.29,145.23,7.4]
[1724001795210,10.7937881,145.29,145.23,7.4]
[1724001795615,3.4413,145.26,145.25,0.04791735]
[1724001803009,0.04915026,145.27,145.25,0.04791735]
[1724001803212,0.04915026,145.27,145.26,7.4]
[1724001803513,0.04915026,145.27,145.25,7.44791735]
[1724001804107,0.04915026,145.27,145.25,0.04791735]
[1724001805507,3.49025026,145.27,145.25,0.04791735]
[1724001807019,3.4412,145.26,145.25,0.04791735]
[1724001818433,3.4421,145.23,145.19,3.4428]
[1724001818637,3.4421,145.23,145.2,7.4]
[1724001818932,3.4421,145.23,145.21,7.4]
[1724001819131,3.4418,145.24,145.21,7.4]
[1724001819528,3.49259164,145.24,145.21,7.43566798]
[1724001821335,3.49259164,145.24,145.23,7.4]
[1724001821629,0.05079164,145.24,145.21,0.03566798]
[1724001822135,0.05079164,145.24,145.22,7.4]
[1724001822632,3.49269164,145.24,145.22,7.4]
[1724001823826,0.05079164,145.24,145.23,7.4]
[1724001824027,4.26,145.27,145.23,7.4]
[1724001824334,7.72023528,145.3,145.25,7.4]
[1724001824631,4.26,145.3,145.25,7.4]
[1724001824826,3.4412,145.27,145.25,7.4]
[1724001825036,3.48860824,145.27,145.25,7.4471733]
[1724001825332,3.48860824,145.27,145.25,0.0471733]
[1724001825538,3.4412,145.26,145.25,0.0471733]
[1724001827736,7.7012,145.26,145.25,0.0471733]
[1724001830843,3.4416,145.25,145.22,7.4]
[1724001831029,4.26,145.26,145.21,3.4423]
[1724001831235,4.26,145.26,145.21,7.4]
[1724001831434,3.4417,145.24,145.2,3.4426]
[1724001831639,3.4417,145.24,145.21,7.4]
[1724001831840,0.05133418,145.23,145.21,10.88168633]
[1724001832738,0.05133418,145.23,145.21,3.48168633]
[1724001832939,3.4422,145.22,145.19,8.7242]
[1724001833240,7.4,145.2,145.13,11.66]
[1724001833441,8.97731539,145.21,145.15,7.4]
[1724001833938,3.4435,145.17,145.15,7.4]
[1724001834339,0.0464599,145.19,145.12,1.2803]
[1724001834639,3.4437,145.16,145.13,7.4]
[1724001834832,4.31024341,145.17,145.12,4.7247]
[1724001835036,3.4437,145.16,145.13,7.4]
[1724001836138,4.31024341,145.17,145.13,7.4]
[1724001836442,4.31024341,145.17,145.15,7.4]
[1724001836642,4.31024341,145.17,145.1,30.8586]
[1724001836844,7.75374341,145.17,145.16,7.4]
[1724001837141,7.75374341,145.17,145.1,1.2586]
[1724001837437,4.31024341,145.17,145.14,7.4]
[1724001837640,4.31024341,145.17,145.1,1.2586]
[1724001837839,4.31024341,145.17,145.13,7.4]
[1724001838033,3.4438,145.16,145.13,7.4]
[1724001838243,4.31024341,145.17,145.12,10.8445]
[1724001838441,4.31024341,145.17,145.1,1.2586]
[1724001838637,4.31024341,145.17,145.12,7.4]
[1724001838638,3.444,145.15,145.12,7.4]
[1724001838843,4.31024341,145.17,145.13,7.4]
[1724001839039,4.26,145.17,145.13,7.4]
[1724001839239,0.0484101,145.16,145.13,7.4]
[1724001839640,3.4922101,145.16,145.13,7.4]
[1724001839941,0.0484101,145.16,145.13,7.4]
[1724001840141,0.0484101,145.16,145.12,3.4445]
[1724001840142,0.0484101,145.16,145.12,10.8445]
[1724001840347,0.0484101,145.16,145.12,7.4]
[1724001841447,0.0484101,145.16,145.12,10.8445]
[1724001842041,3.4922101,145.16,145.12,3.4445]
[1724001842237,0.0484101,145.16,145.14,7.4]
[1724001842949,7.4,145.24,145.14,7.4]
[1724001843142,3.4425,145.21,145.17,7.4]
[1724001843339,3.4425,145.21,145.18,3.443]
[1724001843839,3.4425,145.21,145.18,3.4914101]
[1724001844043,3.4889442,145.21,145.18,3.4914101]
[1724001844856,3.4889442,145.21,145.18,0.0484101]
[1724001845041,7.4464442,145.21,145.18,0.0484101]
[1724001845449,3.4429,145.19,145.18,0.0484101]
[1724001850956,3.4429,145.19,145.15,7.4]
[1724001850957,3.4434,145.17,145.11,6.4256]
[1724001851250,3.4434,145.17,145.14,7.4]
[1724001852055,3.49485578,145.17,145.14,7.4]
[1724001852654,3.4436,145.16,145.14,7.4]
[1724001853761,3.49505578,145.17,145.14,10.8441]
[1724001854562,3.4436,145.16,145.14,7.4]
[1724001855354,3.4438,145.15,145.14,7.4]
[1724001856151,10.84793849,145.17,145.1,1.2586]
[1724001856363,10.79648271,145.17,145.1,1.2586]
[1724001856562,0.05027713,145.15,145.1,1.2586]
[1724001856859,4.39027713,145.15,145.1,1.2586]
[1724001857255,11.79027713,145.15,145.07,1.2937]
[1724001857455,11.79027713,145.15,145.08,7.4]
[1724001858150,27.54,145.14,144.97,20.52014852]
[1724001858357,27.54,145.14,145.05,7.4]
[1724001858358,7.4,145.13,145.05,7.4]
[1724001858553,3.4453,145.09,145.07,7.4]
[1724001858758,4.34,145.08,145.07,7.4]
[1724001859155,4.34,145.08,145.05,1.2637]
[1724001859357,4.34,145.08,145.05,8.6637]
[1724001859772,4.34,145.07,145.05,8.6637]
[1724001860154,0.04655174,145.09,145.0,3.37333288]
[1724001860354,4.34,145.08,145.02,7.4]
[1724001860557,0.04560858,145.06,145.02,7.4]
[1724001860855,0.04560858,145.06,145.01,7.4]
[1724001861056,4.34,145.05,145.01,7.4]
[1724001861255,0.04560858,145.06,145.01,3.4471]
[1724001861256,3.49170858,145.06,145.01,3.4471]
[1724001861464,3.49170858,145.06,145.03,7.4]
[1724001861659,4.34,145.05,145.02,7.4]
[1724001861850,3.4463,145.05,145.02,7.4]
[1724001862059,4.34,145.04,145.02,7.4]
[1724001862259,4.34,145.04,145.01,7.4]
[1724001862460,7.7866,145.04,145.0,3.4473]
[1724001862754,4.34,145.04,144.97,1.3284]
[1724001862952,11.74,145.04,144.97,1.3284]
[1724001863155,7.44475761,145.02,144.97,1.3284]
[1724001863361,7.44475761,145.02,144.86,6.9013]
[1724001863362,3.4484,144.96,144.87,4.34]
[1724001863565,7.4,144.96,144.89,3.8173]
[1724001863758,4.34,144.95,144.89,2.5178]
[1724001863958,7.4,144.96,144.89,2.5178]
[1724001864264,0.04539792,144.94,144.89,2.5178]
[1724001864462,4.34,144.93,144.89,1.2514]
[1724001864961,0.04539792,144.94,144.9,3.4497]
[1724001865165,0.04539792,144.94,144.89,1.2514]
[1724001865464,0.04539792,144.94,144.93,18.55]
[1724001866456,23.3417741,145.03,144.93,18.55]
[1724001866656,4.34,145.02,144.91,1.3488]
[1724001866865,4.34,145.01,144.95,18.55]
[1724001867054,18.55,145.04,144.95,18.55]
[1724001867055,4.62,145.0,144.95,18.55]
[1724001867459,4.62,144.99,144.95,18.55]
[1724001867659,4.66457909,144.99,144.96,0.04539792]
[1724001868467,0.04457909,144.99,144.97,18.55]
[1724001868855,4.62,145.03,144.98,18.55]
[1724001869258,18.55,145.08,144.98,18.55]
[1724001869570,4.62,145.07,145.0,18.55]
[1724001869760,4.62,145.06,145.0,18.55]
[1724001870264,0.04627214,145.04,145.02,18.60032653]
[1724001870559,0.04627214,145.04,145.02,22.04702653]
[1724001871156,0.04627214,145.04,145.03,3.4467]
[1724001871566,0.04627214,145.04,145.02,0.05032653]
[1724001872159,0.04627214,145.04,145.02,3.49722653]
[1724001872555,0.04627214,145.04,145.02,0.05032653]
[1724001872756,3.4467,145.03,145.02,0.05032653]
[1724001873160,8.0667,145.03,145.02,0.05032653]
[1724001873959,4.62,145.03,144.97,1.2711]
[1724001874163,4.62,145.03,144.94,18.55]
[1724001874562,3.4477,144.99,144.94,21.9988]
[1724001875070,0.05122869,144.98,144.95,0.03965048]
[1724001876464,3.49912869,144.98,144.95,0.03965048]
[1724001876968,8.11912869,144.98,144.95,0.03965048]
[1724001877762,3.4482,144.97,144.95,0.03965048]
[1724001877958,3.4482,144.97,144.89,1.3118]
[1724001877959,4.67122869,144.98,144.89,1.3118]
[1724001878261,4.62,144.98,144.89,19.8618]
[1724001878468,4.62,144.98,144.9,3.4496]
[1724001878863,4.62,144.98,144.89,19.8618]
[1724001878864,23.17,144.98,144.89,19.8618]
[1724001879070,18.59901423,144.95,144.86,1.2668]
[1724001879263,21.96753826,144.95,144.86,1.2668]
[1724001879467,18.55,144.95,144.86,1.2668]
[1724001879668,0.04928532,144.92,144.87,18.55]
[1724001879868,3.4496,144.91,144.87,18.55]
[1724001880168,4.68928532,144.92,144.86,1.2668]
[1724001880373,4.68928532,144.92,144.82,4.62]
[1724001880568,4.64,144.92,144.84,18.55]
[1724001880768,4.64,144.92,144.84,3.451]
[1724001880969,0.04850352,144.88,144.84,22.001]
[1724001881376,0.04850352,144.88,144.85,3.4509]
[1724001882168,0.04850352,144.88,144.7,27.58]
[1724001882368,1.3331,144.93,144.85,18.55]
[1724001882576,4.64,144.9,144.87,18.55]
[1724001882763,4.64,144.92,144.87,18.55]
[1724001882968,0.05241128,144.9,144.87,18.55]